bitfinex/quotes_ETHUSD_20251019
["timestamp","ask_amount","ask_price","bid_price","bid_amount"]
[1760881480606,0.001,3953.8,3953.5,2.52940432]
[1760881480607,0.001,3953.8,3953.7,2.52927637]
[1760881480942,0.001,3953.8,3953.5,0.4445]
[1760881481140,0.1264,3953.7,3953.5,0.4445]
[1760881481522,0.1264,3953.7,3953.6,0.4445]
[1760881483326,0.1264,3953.7,3953.1,0.3559]
[1760881483518,0.1264,3953.7,3953.2,0.4445]
[1760881483853,0.1264,3953.7,3953.2,2.52959627]
[1760881484048,0.1264,3953.7,3953.1,0.3559]
[1760881484226,0.1264,3953.7,3953.3,2.52952442]
[1760881484432,0.1264,3953.7,3953.2,2.52959106]
[1760881484626,0.1264,3953.7,3953.2,2.97409106]
[1760881487630,0.1264,3953.7,3953.2,0.4445]
[1760881487851,24.038637,3953.5,3952.5,0.4445]
[1760881488050,2.52952894,3953.4,3952.5,0.4445]
[1760881488244,2.52952894,3953.4,3952.5,2.97448283]
[1760881488550,2.52956171,3953.3,3952.5,0.4445]
[1760881488786,28.413374,3953.4,3952.3,2.75966564]
[1760881489071,13.111873,3953.1,3952.3,2.75966819]
[1760881489227,2.591,3953.1,3952.3,2.75966819]
[1760881489419,2.591,3953.1,3952.4,2.53010511]
[1760881490658,2.591,3953.1,3952.3,2.75965064]
[1760881490959,2.591,3953.1,3952.3,2.53015064]
[1760881491846,5.12067616,3953.1,3952.3,2.53015064]
[1760881492584,2.591,3953.1,3952.3,0.4445]
[1760881493273,2.591,3953.1,3952.6,2.52996975]
[1760881493477,2.591,3953.1,3952.6,0.4445]
[1760881494174,2.368291,3953.1,3952.6,2.52997846]
[1760881494473,2.591,3953.1,3952.7,0.4445]
[1760881494671,2.558375,3953.1,3952.7,0.4445]
[1760881494865,2.591,3953.1,3952.7,0.4445]
[1760881495069,2.591,3953.1,3952.6,2.52997082]
[1760881495264,2.591,3953.1,3952.7,0.4445]
[1760881497677,2.591,3953.1,3952.5,2.53003783]
[1760881497879,0.1264,3952.9,3952.5,2.53003783]
[1760881498282,0.1264,3952.9,3952.6,0.4445]
[1760881498782,0.1264,3952.9,3952.6,2.52997953]
[1760881499077,30.0,3952.8,3952.7,0.4445]
[1760881499257,30.0,3952.8,3952.5,2.53003954]
[1760881499453,30.0,3952.8,3952.6,0.4445]
[1760881500585,30.0,3952.8,3952.3,2.97463595]
[1760881500791,30.0,3952.8,3952.6,2.52995693]
[1760881500986,30.0,3952.8,3952.6,2.97445693]
[1760881501188,30.0,3952.8,3952.7,2.97441625]
[1760881501395,0.001,3953.2,3952.7,0.4445]
[1760881501688,0.001,3953.2,3952.8,0.4445]
[1760881501898,0.001,3953.2,3953.1,0.2295]
[1760881502065,0.001,3953.2,3952.9,0.674]
[1760881502269,0.001,3953.2,3952.9,0.2295]
[1760881502472,0.001,3953.2,3953.0,0.4445]
[1760881503058,0.001,3953.2,3953.1,2.52966026]
[1760881503707,0.001,3953.2,3953.1,2.97416026]
[1760881510208,0.001,3953.2,3953.1,5.11966026]
[1760881510374,0.001,3953.2,3953.1,5.55946026]
[1760881511402,0.001,3953.2,3953.1,2.96946026]
[1760881511600,0.001,3953.2,3953.1,3.09586026]
[1760881511903,0.001,3953.2,3953.1,5.68586026]
[1760881517370,0.001,3953.2,3953.1,3.09586026]
[1760881517686,0.001,3953.2,3953.1,5.68486026]
[1760881518195,0.001,3953.2,3953.1,5.24506026]
[1760881518907,0.001,3953.2,3953.1,2.65606026]
[1760881519204,0.1008,3953.2,3952.9,0.1264]
[1760881519502,0.0998,3953.1,3953.0,2.52967251]
[1760881519897,0.0998,3953.1,3952.9,0.1264]
[1760881520407,0.001,3953.2,3952.9,0.1264]
[1760881520408,0.0998,3953.0,3952.9,0.1264]
[1760881520708,0.001,3953.2,3952.9,5.71776872]
[1760881521014,0.001,3953.2,3953.1,2.88956026]
[1760881521377,0.001,3953.2,3953.1,3.36216026]
[1760881527027,0.001,3953.2,3953.1,2.65606026]
[1760881527627,0.001,3953.2,3953.1,3.12866026]
[1760881528389,0.001,3953.2,3953.1,0.1264]
[1760881528597,0.1,3953.2,3953.1,0.1264]
[1760881528793,0.1,3953.2,3953.1,2.65606026]
[1760881529091,0.001,3953.2,3953.1,2.52966026]
[1760881529628,0.001,3953.2,3953.1,3.23576026]
[1760881529828,0.001,3953.2,3953.1,2.52966026]
[1760881533196,0.1,3953.2,3952.0,0.2295]
[1760881533394,0.099,3953.1,3952.1,3.0616]
[1760881533639,0.099,3953.1,3952.8,2.52984135]
[1760881534129,0.099,3953.1,3952.9,2.52976603]
[1760881534326,0.001,3953.2,3952.7,2.52985383]
[1760881534518,0.099,3953.0,3952.7,2.52985383]
[1760881534718,0.1144,3952.9,3952.7,2.52985383]
[1760881534901,0.0992,3952.8,3952.7,2.52985383]
[1760881535103,0.1144,3952.9,3952.7,2.52985383]
[1760881535514,0.0992,3952.8,3952.5,2.52998067]
[1760881535833,0.0992,3952.8,3952.6,2.52995818]
[1760881536009,0.0992,3952.8,3952.5,2.53003356]
[1760881536209,0.0992,3952.7,3952.5,2.53003356]
[1760881536623,0.1144,3952.9,3952.7,2.52986188]
[1760881536836,0.1144,3952.9,3952.8,2.52985225]
[1760881536994,0.1144,3952.9,3952.7,2.52991146]
[1760881537200,0.2136,3952.9,3952.5,2.53002286]
[1760881537400,0.2136,3952.9,3952.6,2.5299654]
[1760881537628,0.2136,3952.9,3951.5,0.002]
[1760881537800,0.1144,3952.9,3952.5,2.53003678]
[1760881538006,0.1144,3952.9,3952.7,2.52988855]
[1760881538534,0.0992,3952.8,3952.6,2.52997984]
[1760881538841,0.0992,3952.8,3952.7,2.52991625]
[1760881540540,0.1144,3952.9,3952.7,2.52991625]
[1760881540712,0.1144,3952.9,3952.8,2.52985225]
[1760881541127,0.1264,3953.0,3952.8,2.52985225]
[1760881541328,0.1264,3953.0,3952.3,0.1264]
[1760881541329,0.001,3953.2,3952.9,2.99448825]
[1760881541633,0.001,3953.2,3953.1,2.52966026]
[1760881546244,0.001,3953.2,3952.8,2.52985225]
[1760881546445,0.001,3953.2,3952.7,5.11789138]
[1760881546647,0.001,3953.2,3953.0,2.52971071]
[1760881548561,0.001,3953.2,3952.8,2.52984015]
[1760881548762,0.001,3953.2,3953.0,2.52967037]
[1760881549163,0.001,3953.2,3952.9,2.52977586]
[1760881549554,0.001,3953.2,3952.8,2.52983117]
[1760881550032,0.001,3953.2,3952.9,2.52978216]
[1760881551680,0.001,3953.2,3952.8,0.1264]
[1760881551848,2.193,3953.1,3952.3,3.85]
[1760881552160,14.887277,3952.9,3952.3,3.9764]
[1760881552363,0.1144,3952.8,3952.4,2.53008402]
[1760881552563,0.1264,3953.0,3952.7,2.52990197]
[1760881553061,0.1264,3953.0,3952.6,2.52996603]
[1760881553251,0.1264,3953.0,3952.5,2.9947147]
[1760881553561,6.449916,3952.8,3952.3,0.1264]
[1760881553762,6.449916,3952.7,3952.3,0.1264]
[1760881554061,6.455027,3952.8,3952.3,0.1264]
[1760881554244,5.054027,3952.8,3952.3,0.1264]
[1760881555832,0.1264,3953.0,3952.3,0.1264]
[1760881556167,0.1264,3953.0,3952.4,0.4647]
[1760881556671,0.114,3952.9,3952.3,0.1264]
[1760881557045,0.114,3952.9,3952.3,2.65657019]
[1760881557242,0.114,3952.9,3952.2,0.4647]
[1760881557448,0.2404,3952.9,3952.3,2.53017113]
[1760881558353,1.8544,3952.9,3952.2,2.65659938]
[1760881558550,1.8544,3952.9,3952.3,0.4647]
[1760881558862,1.8544,3952.9,3952.4,2.53005618]
[1760881559379,0.001,3953.2,3952.5,0.4647]
[1760881559538,1.8544,3953.1,3952.6,2.52998026]
[1760881559874,1.8544,3953.1,3952.5,0.4647]
[1760881559875,0.001,3953.2,3952.7,2.99460354]
[1760881560043,0.001,3953.2,3952.9,2.52978653]
[1760881560750,0.001,3953.2,3952.3,2.588]
[1760881561063,0.001,3953.2,3953.1,2.76656026]
[1760881561269,0.001,3953.2,3953.0,2.52967227]
[1760881561436,0.001,3953.2,3953.0,2.52969839]
[1760881561638,0.001,3953.2,3953.1,2.52966026]
[1760881562640,0.001,3953.2,3952.5,0.4647]
[1760881563475,0.001,3953.2,3952.9,2.52973269]
[1760881564450,0.0997,3953.1,3952.2,3.85]
[1760881564652,6.31444,3953.0,3952.2,3.85]
[1760881564856,0.1137,3952.9,3952.4,2.53008331]
[1760881565042,2.146824,3953.0,3952.5,0.4506]
[1760881565243,2.146824,3953.0,3952.6,2.52998026]
[1760881565977,0.001,3953.2,3953.1,2.52966026]
[1760881566275,0.1,3953.2,3952.3,2.53015303]
[1760881566476,0.2114,3953.1,3952.4,2.53005617]
[1760881566646,0.2114,3953.1,3952.2,0.4506]
[1760881566846,0.2114,3953.1,3952.4,2.53008094]
[1760881568166,2.7994,3953.1,3952.4,2.53008094]
[1760881568473,2.7994,3953.1,3952.5,2.53002225]
[1760881569408,2.7994,3953.1,3952.4,2.53010439]
[1760881570183,0.1264,3952.9,3952.4,2.53007932]
[1760881570386,0.1264,3952.9,3952.5,0.4587]
[1760881570685,0.1264,3952.9,3952.6,2.52995823]
[1760881571186,1.729,3953.2,3952.0,2.588]
[1760881571187,0.001,3953.2,3952.9,2.52974922]
[1760881571659,0.001,3953.2,3953.0,2.52971643]
[1760881572369,0.001,3953.2,3953.0,2.52971912]
[1760881572569,0.001,3953.2,3953.0,0.4587]
[1760881573082,0.001,3953.2,3953.1,0.4587]
[1760881573281,0.001,3953.2,3953.1,3.21846026]
[1760881573752,0.001,3953.2,3953.0,2.52971429]
[1760881574258,0.001,3953.2,3953.1,2.52966026]
[1760881574686,0.001,3953.2,3953.0,2.98841468]
[1760881575291,0.001,3953.2,3953.1,2.98836026]
[1760881576188,0.001,3953.2,3953.1,2.52966026]
[1760881576665,0.001,3953.2,3952.7,2.52991265]
[1760881576864,0.001,3953.2,3952.6,0.2301]
[1760881577108,11.557294,3953.1,3952.5,2.5300062]
[1760881577283,11.557294,3953.1,3952.5,2.52918019]
[1760881578166,11.557294,3953.1,3952.4,2.53009347]
[1760881578365,2.587,3953.0,3952.4,2.53009347]
[1760881578609,2.587,3953.0,3952.1,2.587]
[1760881578610,8.997855,3952.9,3952.1,2.587]
[1760881578763,10.393662,3952.8,3952.1,2.587]
[1760881578963,10.393662,3952.8,3952.2,2.53023632]
[1760881579200,10.393662,3952.8,3952.1,2.53030034]
[1760881579399,0.1134,3952.9,3952.4,2.53008417]
[1760881580105,3.244693,3952.8,3952.3,2.53011401]
[1760881580293,3.244693,3952.8,3952.3,2.98881401]
[1760881580494,0.1134,3952.9,3952.4,2.98875636]
[1760881580696,3.172693,3952.8,3952.4,2.98875636]
[1760881581009,3.172693,3952.8,3952.4,0.4587]
[1760881581010,3.158352,3952.8,3952.4,0.4587]
[1760881581380,3.158352,3952.8,3952.3,2.53015852]
[1760881581565,3.158352,3952.8,3951.2,3.85]
[1760881581878,3.158352,3952.8,3951.6,2.5306205]
[1760881581879,13.131227,3952.4,3951.6,2.5306205]
[1760881582065,0.1134,3952.9,3951.7,0.4587]
[1760881582270,0.747,3952.8,3951.7,0.4587]
[1760881582501,4.123405,3952.7,3951.8,2.53049243]
[1760881582731,4.016124,3952.7,3952.3,2.5301431]
[1760881582933,1.728,3952.7,3951.6,3.0457]
[1760881583228,4.25791914,3952.7,3951.7,2.53055646]
[1760881583427,5.26524,3952.6,3951.6,0.4587]
[1760881583630,2.587,3952.6,3951.7,0.4587]
[1760881583935,2.587,3952.6,3952.0,2.53030591]
[1760881584146,2.587,3952.6,3951.8,2.53049243]
[1760881584426,2.587,3952.6,3951.5,2.589]
[1760881584427,2.587,3952.6,3952.1,2.53024059]
[1760881584632,2.587,3952.6,3952.1,2.53027559]
[1760881584815,1.728,3952.7,3951.9,0.4587]
[1760881585020,2.587,3952.7,3952.0,0.4587]
[1760881585232,4.315,3952.7,3951.9,2.53037526]
[1760881585404,0.1264,3952.6,3951.9,2.65677526]
[1760881585600,0.2255,3952.6,3951.9,2.65677526]
[1760881585836,2.75549306,3952.6,3951.9,0.1264]
[1760881586033,0.2255,3952.6,3951.9,0.1264]
[1760881586209,0.2255,3952.6,3951.7,2.53052614]
[1760881586210,0.1264,3952.1,3951.7,2.53052614]
[1760881586805,0.1264,3952.1,3951.7,2.98922614]
[1760881587000,0.1264,3952.1,3951.7,2.98924327]
[1760881587305,0.1264,3952.1,3951.8,0.4587]
[1760881587500,0.1264,3952.1,3951.5,0.1284]
[1760881587501,0.1264,3952.1,3952.0,2.53036437]
[1760881587706,0.1264,3952.1,3952.0,2.98906437]
[1760881587935,0.1264,3952.1,3952.0,2.53036437]
[1760881588434,0.1264,3952.1,3951.7,2.530494]
[1760881588946,0.1264,3952.1,3951.8,2.53048829]
[1760881590040,0.1264,3952.1,3951.6,2.53061776]
[1760881590041,0.1264,3952.1,3951.6,2.5306205]
[1760881590206,0.1264,3952.1,3951.7,0.4587]
[1760881590410,0.1264,3952.1,3951.9,2.53038985]
[1760881591238,0.1264,3952.1,3951.7,2.98924964]
[1760881591239,0.1264,3952.1,3951.7,2.53051543]
[1760881591541,0.1264,3952.1,3951.6,2.53059842]
[1760881591722,0.1264,3952.1,3951.9,2.53038741]
[1760881591923,0.1264,3952.1,3951.6,2.53059842]
[1760881591924,0.1264,3952.1,3951.7,2.53049773]
[1760881592244,0.1264,3952.1,3951.6,2.53060888]
[1760881592444,0.1264,3952.1,3951.5,0.1284]
[1760881592445,0.0991,3952.0,3951.7,2.53054338]
[1760881592610,0.1264,3952.1,3951.5,2.65907627]
[1760881592811,0.1264,3952.1,3951.9,2.5303769]
[1760881593141,0.1264,3952.1,3952.0,2.53036437]
[1760881593446,0.1134,3953.1,3952.0,0.4587]
[1760881593659,0.1264,3952.6,3952.3,2.53016716]
[1760881594414,0.1264,3952.6,3951.9,0.1264]
[1760881594651,0.1264,3952.6,3952.0,2.53030422]
[1760881594858,0.1264,3952.6,3952.1,2.53028729]
[1760881595062,0.1264,3952.6,3952.2,2.53017698]
[1760881597029,2.587,3952.5,3951.9,0.1264]
[1760881597235,2.587,3952.5,3951.8,0.431]
[1760881597434,0.1264,3952.2,3951.8,0.431]
[1760881597648,0.1264,3952.2,3951.9,0.431]
[1760881597847,0.1264,3952.6,3952.1,0.2184]
[1760881598028,1.8544,3952.6,3952.2,2.96123632]
[1760881598227,1.8544,3952.6,3952.1,2.74869513]
[1760881598430,1.8544,3952.6,3952.1,0.2184]
[1760881598630,1.8544,3952.6,3952.0,2.53030621]
[1760881599165,1.8544,3952.6,3951.9,0.5574]
[1760881599364,2.53012688,3952.4,3951.6,2.5306205]
[1760881599532,0.1264,3952.2,3951.6,0.1264]
[1760881599862,2.7134,3952.2,3951.6,0.1264]
[1760881600428,0.1264,3951.9,3951.6,2.5305946]
[1760881600662,0.1264,3951.9,3951.5,2.9636784]
[1760881600846,0.1264,3951.9,3951.7,2.53053793]
[1760881601160,0.1264,3951.9,3951.6,2.96160179]
[1760881601333,0.1264,3951.9,3951.5,0.002]
[1760881601844,0.1264,3951.9,3951.5,0.433]
[1760881602046,0.1264,3951.9,3951.5,0.002]
[1760881602245,0.1264,3951.9,3951.5,2.53266001]
[1760881603065,0.1264,3951.9,3951.6,2.53060804]
[1760881603566,0.1264,3951.9,3951.6,2.96160804]
[1760881603950,0.1264,3951.9,3951.6,2.53060804]
[1760881604267,0.1264,3951.9,3951.5,2.53267711]
[1760881604649,0.1264,3951.9,3951.5,2.53266645]
[1760881605055,0.1264,3951.9,3951.6,2.53060489]
[1760881606337,0.1264,3951.9,3951.5,0.002]
[1760881606532,0.099,3951.8,3951.5,0.002]
[1760881606737,2.587,3951.7,3951.5,0.002]
[1760881606972,2.7134,3951.7,3951.5,0.002]
[1760881609347,2.8124,3951.7,3951.5,0.002]
[1760881610375,8.75099,3951.6,3951.5,0.002]
[1760881610956,6.400307,3951.6,3951.5,0.002]
[1760881611292,5.523817,3951.6,3951.5,0.002]
[1760881612291,0.099,3951.6,3951.5,0.002]
[1760881612453,7.370693,3951.6,3951.5,0.002]
[1760881613086,9.9013135,3951.6,3951.5,0.002]
[1760881613464,14.2284265,3951.6,3951.5,0.002]
[1760881613659,8.316067,3951.6,3951.5,0.002]
[1760881613858,6.13154196,3951.6,3951.5,0.002]
[1760881614084,5.91854196,3951.6,3951.5,0.002]
[1760881614288,2.19445396,3951.6,3951.5,0.433]
[1760881614492,4.315,3951.6,3951.5,0.433]
[1760881614695,4.315,3951.6,3951.5,0.002]
[1760881615387,15.642684,3951.6,3951.5,0.002]
[1760881615686,4.315,3951.6,3951.5,0.002]
[1760881616598,16.31724,3951.6,3951.5,0.002]
[1760881616805,18.90424,3951.6,3951.5,0.002]
[1760881617280,17.584699,3951.6,3951.5,0.002]
[1760881617484,17.443031,3951.6,3951.5,0.002]
[1760881618064,19.9736515,3951.6,3951.5,0.002]
[1760881618465,6.9446205,3951.6,3951.5,0.002]
[1760881618669,36.9446205,3951.6,3951.5,0.002]
[1760881618878,12.418613,3951.6,3951.5,0.002]
[1760881619077,9.883432,3951.6,3951.5,0.002]
[1760881619367,9.951791,3951.6,3951.5,0.002]
[1760881619567,7.47641,3951.6,3951.5,0.002]
[1760881619865,8.33041,3951.6,3951.5,0.002]
[1760881620069,5.74341,3951.6,3951.5,0.002]
[1760881620285,10.9590305,3951.6,3951.5,0.002]
[1760881620491,22.2225405,3951.6,3951.5,0.002]
[1760881621397,7.7976205,3951.6,3951.5,0.002]
[1760881621607,27.0290045,3951.6,3951.5,0.002]
[1760881622703,26.5845425,3951.6,3951.5,0.002]
[1760881622905,21.5029445,3951.6,3951.5,0.002]
[1760881623073,19.2770635,3951.6,3951.5,0.002]
[1760881623607,34.6298335,3951.6,3951.5,0.002]
[1760881623802,34.1000195,3951.6,3951.5,0.002]
[1760881624419,28.8544575,3951.6,3951.5,0.002]
[1760881624715,13.668577,3951.6,3951.5,0.002]
[1760881624903,9.9910555,3951.6,3951.5,0.002]
[1760881625705,4.867185,3951.6,3951.5,0.002]
[1760881625919,9.9838055,3951.6,3951.5,0.4704]
[1760881626292,7.453185,3951.6,3951.5,0.4704]
[1760881626616,11.827308,3951.6,3951.5,0.4704]
[1760881626818,10.86636,3951.6,3951.5,0.4704]
[1760881627588,10.399746,3951.6,3951.5,0.4704]
[1760881627790,6.488541,3951.6,3951.5,0.002]
[1760881628595,6.712541,3951.6,3951.5,0.002]
[1760881629084,4.126541,3951.6,3951.5,0.002]
[1760881629288,6.712541,3951.6,3951.5,0.002]
[1760881629819,4.173462,3951.6,3951.5,0.002]
[1760881629999,6.516437,3951.6,3951.5,0.002]
[1760881630188,3.930437,3951.6,3951.5,0.002]
[1760881630523,6.516437,3951.6,3951.5,0.4612]
[1760881630689,6.475924,3951.6,3951.5,0.4612]
[1760881630891,9.6401445,3951.6,3951.5,0.002]
[1760881631092,9.7391445,3951.6,3951.5,0.002]
[1760881631287,9.84061132,3951.6,3951.5,0.002]
[1760881631702,33.23314432,3951.6,3951.5,0.002]
[1760881631935,27.64836232,3951.6,3951.5,0.002]
[1760881632804,30.31591532,3951.6,3951.5,0.002]
[1760881633804,7.57968732,3951.6,3951.5,0.002]
[1760881634003,30.28060832,3951.6,3951.5,0.002]
[1760881634204,30.06204632,3951.6,3951.5,0.002]
[1760881634921,30.06203732,3951.6,3951.5,0.002]
[1760881635643,10.31023482,3951.6,3951.5,0.002]
[1760881635954,4.78554782,3951.6,3951.5,0.4612]
[1760881636152,2.586,3951.6,3951.5,0.4612]
[1760881636517,0.7336,3952.5,3951.5,0.4612]
[1760881636518,0.1264,3951.8,3951.5,0.4612]
[1760881636717,0.1264,3951.8,3951.7,2.53055646]
[1760881636922,0.001,3952.5,3951.7,0.4592]
[1760881637119,2.187,3952.5,3952.4,0.2182]
[1760881637321,2.187,3952.5,3952.4,3.20750828]
[1760881637714,2.187,3952.5,3952.4,0.6774]
[1760881637908,2.187,3952.5,3952.4,3.20750828]
[1760881638117,0.001,3952.5,3952.4,3.20750828]
[1760881640140,0.001,3953.2,3952.8,2.52985225]
[1760881640336,0.001,3953.2,3953.1,2.52966026]
[1760881640535,0.001,3953.2,3953.1,2.74786026]
[1760881641067,0.001,3953.2,3953.1,3.20706026]
[1760881642955,0.001,3953.2,3953.1,5.79206026]
[1760881643760,0.001,3953.2,3953.1,8.15366026]
[1760881644470,0.001,3953.8,3953.7,2.52927637]
[1760881644675,0.001,3953.8,3953.7,5.11427637]
[1760881644875,0.001,3953.8,3953.7,5.57347637]
[1760881645669,0.001,3953.8,3953.7,7.93507637]
[1760881646072,0.001,3953.8,3953.7,8.14597637]
[1760881646976,0.001,3953.8,3953.7,8.27237637]
[1760881647271,0.001,3953.8,3953.7,8.14597637]
[1760881648472,1e-08,3954.2,3954.1,4.89062051]
[1760881648672,1e-08,3954.2,3954.1,5.56802051]
[1760881649475,0.001,3954.6,3954.5,4.89036469]
[1760881649652,0.001,3954.6,3954.5,7.47436469]
[1760881649974,0.0244,3956.3,3956.2,2.52767807]
[1760881650167,0.0244,3956.3,3956.2,5.11167807]
[1760881650769,0.0244,3956.3,3956.2,5.57087807]
[1760881651582,0.0244,3956.3,3956.2,7.29887807]
[1760881652144,0.099,3958.3,3956.8,4.25529478]
[1760881652348,0.099,3958.3,3956.8,7.93109478]
[1760881653379,0.1456,3957.9,3956.8,4.25529478]
[1760881653592,0.0995,3957.5,3956.8,5.11029478]
[1760881653878,1.11536294,3956.9,3955.7,0.4592]
[1760881654222,0.83626294,3956.9,3956.5,2.5274846]
[1760881654474,0.83626294,3956.9,3956.0,2.583]
[1760881654475,1.01556294,3956.9,3956.0,5.56996179]
[1760881654663,1.11536294,3956.9,3956.3,2.52755338]
[1760881654867,1.11536294,3956.9,3956.1,2.52772326]
[1760881655194,1.11536294,3956.9,3955.6,2.52806123]
[1760881655195,0.0998,3956.8,3955.8,5.11093003]
[1760881655496,0.0998,3956.8,3956.1,2.52773452]
[1760881655671,1.01556294,3956.9,3956.2,2.52767387]
[1760881655873,1.01556294,3956.9,3955.9,3.0147]
[1760881656057,0.83626294,3956.9,3956.6,2.52741081]
[1760881656386,0.83626294,3956.9,3956.7,2.52734093]
[1760881656591,0.83626294,3956.9,3956.0,0.4317]
[1760881656592,0.83626294,3956.9,3956.8,2.52729478]
[1760881656946,0.83626294,3956.9,3956.8,5.54099478]
[1760881657148,0.83626294,3956.9,3956.8,5.66659478]
[1760881658865,0.83626294,3956.9,3956.8,6.30019478]
[1760881659186,0.005,3958.2,3956.8,6.30019478]
[1760881659187,1e-08,3958.2,3958.1,4.88806471]
[1760881659486,0.1769,3960.4,3958.1,4.88806471]
[1760881659487,0.1769,3960.4,3958.9,3.15955417]
[1760881659688,0.1769,3960.4,3958.9,5.74155417]
[1760881659889,0.1007,3960.3,3958.9,6.17325417]
[1760881660255,0.1007,3960.3,3958.9,5.53965417]
[1760881660256,0.1124,3959.8,3958.9,5.53965417]
[1760881660659,0.101,3959.6,3958.9,2.582]
[1760881661011,0.101,3959.6,3958.4,0.4317]
[1760881661012,0.10438348,3959.0,3957.7,0.2332]
[1760881661209,0.2492,3958.9,3957.9,2.52658913]
[1760881661489,0.2492,3958.9,3957.8,2.582]
[1760881661490,2.52617242,3958.6,3956.6,0.6649]
[1760881661655,2.52627324,3958.4,3956.8,2.52728226]
[1760881661856,1.728,3958.1,3956.7,2.581]
[1760881662083,0.099,3958.3,3956.7,2.581]
[1760881662311,0.1477,3958.9,3956.8,0.45697294]
[1760881662585,0.1477,3958.9,3957.1,0.6336]
[1760881662586,9.927351,3958.8,3957.1,0.6336]
[1760881662774,0.1477,3958.9,3958.0,2.52651875]
[1760881662980,2.716426,3958.8,3958.0,4.94951875]
[1760881663191,2.246569,3958.8,3958.0,2.423]
[1760881663395,0.1477,3958.9,3958.0,4.94952581]
[1760881663560,0.1477,3958.9,3958.4,2.52627306]
[1760881664163,0.1477,3958.9,3958.0,2.581]
[1760881664464,0.2467,3958.9,3958.0,2.581]
[1760881664869,0.1477,3958.9,3958.0,2.581]
[1760881665075,0.00338348,3959.0,3958.1,3.0127]
[1760881665269,0.00338348,3959.0,3958.2,3.2146]
[1760881665609,0.00338348,3959.0,3958.9,2.52595417]
[1760881666111,0.00338348,3959.0,3958.9,2.95765417]
[1760881666303,0.00338348,3959.0,3958.9,3.59125417]
[1760881667122,0.00338348,3959.0,3958.8,2.581]
[1760881667273,0.00338348,3959.0,3958.9,2.52595417]
[1760881667475,0.00338348,3959.0,3958.9,2.95765417]
[1760881667707,0.00338348,3959.0,3958.8,2.581]
[1760881668094,0.00338348,3959.0,3958.9,2.95765417]
[1760881668314,0.00338348,3959.0,3958.9,3.59125417]
[1760881668510,0.00338348,3959.0,3958.8,2.581]
[1760881668712,0.00338348,3959.0,3958.6,5.11014075]
[1760881669014,0.00338348,3959.0,3958.6,2.584]
[1760881669198,0.00338348,3959.0,3958.9,2.52595417]
[1760881669379,0.00338348,3959.0,3958.9,0.1256]
[1760881669807,0.00338348,3959.0,3958.9,2.65155417]
[1760881670014,0.00338348,3959.0,3958.9,0.1256]
[1760881670314,0.00338348,3959.0,3958.9,2.65155417]
[1760881670517,0.00338348,3959.0,3958.9,0.1256]
[1760881670915,0.00338348,3959.0,3958.9,2.65155417]
[1760881671695,0.00338348,3959.0,3958.9,0.1256]
[1760881671891,0.00338348,3959.0,3958.9,2.65155417]
[1760881672433,0.00338348,3959.0,3958.9,0.1256]
[1760881672584,0.00338348,3959.0,3958.9,2.65155417]
[1760881672785,0.00338348,3959.0,3958.9,0.1256]
[1760881672998,0.00338348,3959.0,3958.9,2.65155417]
[1760881673439,0.00338348,3959.0,3958.9,3.08315417]
[1760881674250,0.00338348,3959.0,3958.9,2.65155417]
[1760881674746,0.00338348,3959.0,3958.9,0.1256]
[1760881675118,0.10278348,3959.0,3958.4,0.1256]
[1760881675314,0.1472,3958.5,3958.4,0.1256]
[1760881676013,0.2471,3958.5,3958.2,0.457]
[1760881676217,0.1472,3958.5,3958.1,0.1256]
[1760881676878,0.2471,3958.5,3958.1,0.1256]
[1760881677055,0.0999,3958.4,3958.1,0.1256]
[1760881677429,0.0999,3958.3,3958.1,0.1256]
[1760881678248,0.1472,3958.5,3958.1,0.1256]
[1760881678412,0.0999,3958.4,3958.1,0.1256]
[1760881679338,0.0999,3958.3,3957.8,0.954]
[1760881679552,0.0999,3958.2,3957.8,1.0796]
[1760881680049,0.1486,3957.9,3957.8,1.0796]
[1760881680354,0.1486,3957.9,3957.8,0.1256]
[1760881680557,7.844015,3957.8,3957.3,0.1256]
[1760881680851,0.099,3957.7,3957.3,0.1256]
[1760881681058,0.1256,3958.0,3957.5,2.52683847]
[1760881681237,0.1472,3958.5,3957.9,2.52658626]
[1760881681436,0.2728,3958.5,3957.8,0.1256]
[1760881681621,0.2728,3958.5,3957.8,2.65225615]
[1760881682018,0.3723,3958.5,3957.8,0.1256]
[1760881682258,0.3723,3958.5,3957.4,2.581]
[1760881682259,0.0995,3958.4,3957.4,2.581]
[1760881682548,0.1472,3958.5,3957.4,2.581]
[1760881682549,0.1472,3958.5,3957.6,2.52677724]
[1760881682751,0.1472,3958.5,3957.4,5.10785366]
[1760881682957,2.62578825,3958.4,3957.4,5.10790733]
[1760881683454,2.52633706,3958.3,3957.4,2.581]
[1760881683755,0.0995,3958.4,3957.6,2.52672871]
[1760881683925,0.1472,3958.5,3957.8,2.52664103]
[1760881684123,0.1472,3958.5,3957.6,2.5267839]
[1760881684322,0.0995,3958.4,3957.4,2.581]
[1760881684550,2.52646356,3958.2,3957.4,2.581]
[1760881684855,0.1472,3958.5,3957.4,2.581]
[1760881685155,2.047248,3958.4,3957.3,3.0447]
[1760881685354,0.1472,3958.5,3957.7,2.52666104]
[1760881685853,0.1472,3958.5,3957.4,0.4617]
[1760881685854,0.1472,3958.5,3957.4,2.98859789]
[1760881686055,2.065248,3958.4,3957.4,0.4617]
[1760881686226,2.065248,3958.4,3957.3,2.583]
[1760881686429,2.62583706,3958.3,3957.3,2.583]
[1760881686653,0.0995,3958.3,3957.4,2.5269116]